bitfinex/quotes_ETHUSD_20250413
["timestamp","ask_amount","ask_price","bid_price","bid_amount"]
[1744557441738,19.99522,1582.9,1582.5,6.31893]
[1744557441933,6.11,1582.9,1582.6,7.28380512]
[1744557442141,6.11,1582.9,1582.7,6.31829]
[1744557442450,6.11,1582.9,1582.6,7.10963]
[1744557442658,6.11,1582.9,1582.8,0.17417512]
[1744557442857,12.42714,1583.0,1582.6,7.10963]
[1744557443036,6.31779,1582.9,1582.6,0.7911]
[1744557443229,6.31779,1582.9,1582.7,0.17417512]
[1744557443432,7.11151,1582.8,1582.7,0.17417512]
[1744557443772,13.42971,1582.8,1582.4,6.31945]
[1744557443920,6.31835,1582.7,1582.5,0.17417512]
[1744557444556,6.31835,1582.7,1582.3,6.31983]
[1744557444852,7.11157,1582.8,1582.3,6.31983]
[1744557444853,7.11157,1582.8,1582.4,6.49354512]
[1744557445053,6.31889,1582.6,1582.4,0.17417512]
[1744557445273,0.7936,1582.5,1582.4,0.17417512]
[1744557445467,6.32001,1582.3,1582.1,0.05]
[1744557445833,6.32001,1582.3,1582.2,0.1411289]
[1744557446241,6.32001,1582.3,1582.1,0.05]
[1744557446447,6.32001,1582.3,1582.2,0.14125809]
[1744557446774,6.31954,1582.4,1582.1,7.14069]
[1744557446971,6.31954,1582.4,1582.2,0.14358381]
[1744557447157,6.31954,1582.4,1582.1,0.8201]
[1744557447471,6.31954,1582.4,1582.2,0.14358381]
[1744557447843,6.31954,1582.4,1582.1,7.14077]
[1744557448049,16.43212,1582.5,1582.3,0.14358381]
[1744557448387,16.43212,1582.5,1582.4,0.14358381]
[1744557448544,3.7936,1582.5,1582.1,0.05]
[1744557448878,3.7936,1582.5,1582.2,0.13170793]
[1744557448879,7.13421,1582.3,1582.2,0.13170793]
[1744557449046,10.13421,1582.3,1582.2,0.13170793]
[1744557449247,6.32031,1582.2,1582.1,0.05]
[1744557449677,6.32031,1582.2,1582.1,0.17409939]
[1744557449881,6.32031,1582.2,1582.1,0.05]
[1744557450066,6.32031,1582.2,1582.1,0.17409939]
[1744557450267,6.32031,1582.2,1582.1,0.05]
[1744557450570,9.32031,1582.2,1582.1,0.05]
[1744557450755,9.32031,1582.2,1582.1,0.17409939]
[1744557451377,10.13461,1582.2,1582.1,0.17409939]
[1744557451608,16.24461,1582.2,1582.1,0.17409939]
[1744557451991,16.24461,1582.2,1582.1,0.05]
[1744557453190,6.323,1581.6,1581.3,0.7974]
[1744557453592,6.323,1581.6,1581.4,0.12255619]
[1744557453791,6.32235,1581.7,1581.4,0.12255619]
[1744557454649,13.26428,1581.9,1581.4,6.44585619]
[1744557454860,12.43168,1581.9,1581.5,6.32307]
[1744557455061,18.75348,1581.9,1581.5,7.59996262]
[1744557455291,0.8326,1581.8,1581.2,60.47613]
[1744557455507,12.64491,1581.7,1581.3,0.06323205]
[1744557455668,6.32273,1581.6,1581.3,6.38712205]
[1744557455869,12.64491,1581.7,1581.4,0.1257834]
[1744557456079,6.32231,1581.7,1581.4,0.1257834]
[1744557456284,6.32196,1581.8,1581.5,7.09318]
[1744557456509,6.32196,1581.8,1581.5,0.7701]
[1744557457000,6.32196,1581.8,1581.6,0.1257834]
[1744557457804,12.64413,1581.8,1581.6,0.1257834]
[1744557458272,6.32231,1581.7,1581.6,0.1257834]
[1744557458879,6.32196,1581.8,1581.6,0.1257834]
[1744557459289,12.64413,1581.8,1581.6,0.1257834]
[1744557459608,6.32231,1581.7,1581.6,0.1257834]
[1744557459981,7.11511,1581.7,1581.6,0.1257834]
[1744557460300,7.11511,1581.7,1581.1,0.05]
[1744557460301,12.64732,1581.4,1581.1,0.8297]
[1744557460509,6.324,1581.3,1581.1,0.8297]
[1744557460676,6.32351,1581.4,1581.2,0.1257834]
[1744557460868,12.64729,1581.4,1581.2,0.1257834]
[1744557461072,12.64729,1581.4,1581.1,0.8297]
[1744557461307,6.32351,1581.4,1581.3,0.1257834]
[1744557461619,6.32312,1581.5,1581.3,0.1257834]
[1744557461787,6.32312,1581.5,1581.2,6.32416]
[1744557462116,6.91191567,1581.4,1581.3,0.1257834]
[1744557462321,13.23542567,1581.4,1581.3,0.1257834]
[1744557462618,6.32431,1581.2,1581.1,0.05]
[1744557463117,6.32431,1581.2,1581.1,0.19115048]
[1744557463419,12.64824,1581.3,1581.1,0.05]
[1744557463601,3.7928,1581.4,1581.1,0.19115048]
[1744557463602,6.32356,1581.4,1581.1,0.19115048]
[1744557463911,12.43316,1581.5,1581.1,7.34713048]
[1744557464110,6.11,1581.5,1581.2,6.32429]
[1744557464299,6.32233,1581.7,1581.3,6.32382]
[1744557464503,6.32239,1581.7,1581.3,6.46604321]
[1744557464679,13.22994,1581.8,1581.4,6.32346]
[1744557464877,6.32231,1581.7,1581.3,6.46604321]
[1744557465079,6.32231,1581.7,1581.3,6.32373]
[1744557465383,13.22994,1581.8,1581.4,6.46572321]
[1744557465577,13.22994,1581.8,1581.5,0.8313]
[1744557465778,12.43194,1581.8,1581.6,0.13792135]
[1744557466286,6.11,1581.8,1581.6,0.13792135]
[1744557466696,10.11916,1582.0,1581.6,6.46043135]
[1744557466882,19.54929,1582.2,1581.7,6.32207]
[1744557467214,19.54929,1582.2,1581.8,0.8313]
[1744557467215,12.64171,1582.1,1581.8,0.8313]
[1744557467514,12.64171,1582.1,1581.8,0.96922135]
[1744557467693,6.908,1582.2,1581.8,0.96922135]
[1744557467892,6.11,1582.2,1581.9,6.32142]
[1744557468204,12.6386,1582.5,1582.1,6.32069]
[1744557468406,6.31966,1582.4,1581.9,14.00408914]
[1744557468590,6.31998,1582.3,1582.0,0.1268159]
[1744557468921,6.31966,1582.4,1582.0,12.7689759]
[1744557469228,6.31966,1582.4,1582.1,6.32068]
[1744557469512,13.19318,1582.6,1582.2,0.8259]
[1744557469712,3.0,1582.5,1582.2,7.14603]
[1744557470029,6.11,1582.6,1582.3,6.4465859]
[1744557470385,6.11,1582.6,1582.3,12.7663459]
[1744557470580,7.08212,1582.8,1582.3,12.7663459]
[1744557470581,7.08212,1582.8,1582.4,6.31933]
[1744557470780,7.08212,1582.8,1582.5,0.1195892]
[1744557470781,6.31792,1582.8,1582.5,0.1195892]
[1744557470983,6.31754,1582.9,1582.5,7.2645992]
[1744557471482,6.31754,1582.9,1582.5,6.4386992]
[1744557471710,6.31871,1582.6,1582.5,0.1195892]
[1744557472117,6.31871,1582.6,1582.2,0.8259]
[1744557472420,6.31871,1582.6,1582.2,7.14605]
[1744557472721,6.31871,1582.6,1582.2,13.4662]
[1744557472885,6.31871,1582.6,1582.2,7.14605]
[1744557473420,6.31871,1582.6,1582.2,8.49272]
[1744557473719,19.2192,1582.8,1582.3,6.31976]
[1744557474023,18.74642,1582.8,1582.4,6.31928]
[1744557475226,12.4282,1582.8,1582.4,12.63864]
[1744557475522,12.42795,1582.8,1582.3,6.31987]
[1744557475728,6.31852,1582.7,1582.3,7.169114]
[1744557476419,6.31852,1582.7,1582.3,13.488804]
[1744557478126,6.31905,1582.6,1582.2,7.14614]
[1744557478428,6.31905,1582.6,1582.2,7.14601]
[1744557478647,6.31905,1582.6,1582.3,6.31984]
[1744557478789,12.63803,1582.6,1582.2,7.14601]
[1744557478992,6.31898,1582.6,1582.2,7.14601]
[1744557479220,6.31898,1582.6,1582.2,13.4661]
[1744557479926,0.8096,1582.6,1582.2,0.8259]
[1744557480132,6.31985,1582.4,1582.0,13.45274]
[1744557480441,6.32104,1582.1,1581.6,6.32244]
[1744557480741,6.32112,1582.0,1581.6,12.64491]
[1744557481240,6.32033,1582.2,1581.7,6.3222]
[1744557481440,6.32033,1582.2,1581.8,7.13236]
[1744557481997,12.64089,1582.2,1581.8,7.13236]
[1744557482196,0.8096,1582.3,1581.8,0.8107]
[1744557482197,6.32091,1582.1,1581.8,0.8107]
[1744557482444,6.32113,1582.0,1581.8,0.8107]
[1744557484141,6.32036,1582.2,1581.8,0.8107]
[1744557484299,16.45001,1582.3,1581.9,6.3215]
[1744557484506,7.12977,1582.3,1581.9,12.64286]
[1744557485043,18.74932,1582.4,1582.0,6.32087]
[1744557485341,12.42954,1582.4,1582.0,6.32087]
[1744557485798,6.31896,1582.6,1582.2,6.32001]
[1744557485999,13.85837,1582.7,1582.3,6.31973]
[1744557486737,6.31837,1582.7,1582.3,6.31973]
[1744557486930,12.63698,1582.7,1582.3,6.31973]
[1744557487802,6.32006,1582.3,1581.8,3.7821]
[1744557488015,6.32122,1582.0,1581.8,0.7821]
[1744557488205,6.32122,1582.0,1581.6,13.10865]
[1744557488206,6.32231,1581.7,1581.6,0.7821]
[1744557488438,6.32231,1581.7,1581.4,7.10547]
[1744557488729,6.32231,1581.7,1581.4,0.7821]
[1744557489033,6.11,1582.0,1581.3,6.786]
[1744557489034,6.32312,1581.5,1581.3,6.786]
[1744557489203,6.32351,1581.4,1581.2,0.7821]
[1744557489404,6.32312,1581.5,1581.2,7.10635]
[1744557489600,6.32312,1581.5,1581.2,0.7821]
[1744557490641,6.32368,1581.4,1581.1,0.05]
[1744557490841,6.32296,1581.6,1581.1,7.81231378]
[1744557491021,6.32374,1581.4,1581.1,0.05]
[1744557492539,6.32423,1581.3,1581.1,0.05]
[1744557492738,6.32431,1581.2,1581.1,0.05]
[1744557493255,12.43371,1581.4,1581.1,0.05]
[1744557493547,18.75751,1581.4,1581.1,0.05]
[1744557493945,6.32392,1581.3,1581.1,0.05]
[1744557494259,12.43371,1581.4,1581.1,0.05]
[1744557494447,6.32411,1581.3,1581.1,0.05]
[1744557494745,6.32431,1581.2,1581.1,0.05]
[1744557496056,6.32431,1581.2,1581.1,0.17424178]
[1744557496057,16.18431,1581.2,1581.1,0.17424178]
[1744557496212,19.84472778,1581.2,1581.1,0.05]
[1744557496541,19.29472778,1581.2,1581.1,0.05]
[1744557496765,19.75893312,1581.2,1581.1,0.05]
[1744557497841,7.12601,1581.0,1580.9,0.4015059]
[1744557499258,19.34642778,1581.0,1580.9,0.4015059]
[1744557500414,16.23601,1581.0,1580.9,0.4015059]
[1744557502160,19.89642778,1581.0,1580.1,1e-05]
[1744557502355,6.32723,1580.5,1580.1,6.32854]
[1744557502553,6.32723,1580.5,1580.2,0.12424178]
[1744557502554,6.32752,1580.4,1580.2,0.12424178]
[1744557502855,6.32752,1580.4,1580.1,1e-05]
[1744557503066,6.32752,1580.4,1580.2,0.12424178]
[1744557503263,12.43715,1580.5,1580.2,0.12424178]
[1744557503432,6.11,1580.5,1580.2,7.12009]
[1744557503981,6.11,1580.5,1580.3,0.12424178]
[1744557504186,12.43731,1580.5,1580.3,0.12424178]
[1744557504458,6.32751,1580.4,1580.3,0.12424178]
[1744557504637,6.3282,1580.3,1580.1,1e-05]
[1744557504832,6.3282,1580.3,1580.2,0.12424178]
[1744557505247,6.3282,1580.3,1580.1,1e-05]
[1744557505422,0.7884,1580.4,1580.2,0.12424178]
[1744557505628,12.43715,1580.5,1580.1,6.32851]
[1744557505950,12.43715,1580.5,1580.2,0.12424178]
[1744557506147,18.76463,1580.5,1580.2,0.12424178]
[1744557506350,12.43715,1580.5,1580.1,6.32851]
[1744557506550,0.7884,1580.4,1580.1,1e-05]
[1744557506728,6.3283,1580.3,1580.2,0.13419437]
[1744557507128,6.32831,1580.2,1580.1,1e-05]
[1744557509242,6.32808,1580.3,1580.1,1e-05]
[1744557509440,12.65622,1580.3,1580.1,1e-05]
[1744557510166,6.32831,1580.2,1580.1,1e-05]
[1744557512171,6.32831,1580.2,1579.3,0.4015059]
[1744557512172,0.8096,1580.1,1579.3,0.4015059]
[1744557512369,9.66,1580.2,1579.3,0.4015059]
[1744557512370,3.0,1579.6,1579.3,0.4015059]
[1744557512669,12.66274,1579.5,1579.4,0.1649347]
[1744557513167,6.33132,1579.5,1579.4,0.1649347]
[1744557513578,24.06543779,1579.5,1579.4,0.1649347]
[1744557513779,13.72243779,1579.5,1579.4,0.1649347]
[1744557513948,13.25092,1579.5,1579.3,0.4015059]
[1744557514149,12.44151,1579.4,1579.3,0.4015059]
[1744557514383,6.11,1579.4,1579.3,0.4015059]
[1744557514595,6.9196,1579.5,1579.3,0.4015059]
[1744557514874,12.4412,1579.5,1579.3,0.4015059]
[1744557515049,12.4412,1579.5,1579.4,0.1649347]
[1744557515256,12.44115,1579.5,1579.3,0.4015059]
[1744557515439,12.44115,1579.5,1579.4,0.1649347]
[1744557515871,6.33151,1579.4,1579.3,0.4015059]
[1744557516056,6.33151,1579.4,1579.3,0.5664406]
[1744557516369,12.44115,1579.5,1579.3,0.5664406]
[1744557516790,6.11,1579.5,1579.3,0.5664406]
[1744557516946,5.96,1579.5,1579.3,0.5664406]
[1744557517775,6.7646,1580.1,1579.6,6.33055]
[1744557518073,5.96,1580.1,1579.9,0.7646]
[1744557518433,5.96,1580.1,1580.0,0.17878086]
[1744557518434,12.28871,1580.1,1580.0,0.17878086]
[1744557518845,12.28871,1580.1,1579.8,6.822]
[1744557519077,5.96,1580.1,1579.9,0.17878086]
[1744557519241,5.96,1580.1,1579.8,13.1519]
[1744557519440,5.96,1580.1,1579.9,0.17878086]
[1744557519669,5.96,1580.1,1579.9,6.32941]
[1744557519851,9.32753,1580.4,1580.0,6.50785086]
[1744557520247,6.32797,1580.3,1580.0,0.17878086]
[1744557520559,12.6553,1580.4,1580.0,0.17878086]
[1744557520761,9.32794,1580.3,1580.0,0.17878086]
[1744557521744,15.65612,1580.3,1580.0,0.17878086]
[1744557522069,6.32846,1580.2,1580.0,0.17878086]
[1744557522273,6.32793,1580.3,1579.9,6.32934]
[1744557522474,12.6561,1580.3,1580.0,0.1694617]
[1744557522777,9.32794,1580.3,1580.0,0.1694617]
[1744557524391,15.65613,1580.3,1580.0,0.1694617]
[1744557524589,3.0,1580.3,1580.0,0.1694617]
[1744557524896,7.13177,1580.5,1580.2,6.32806]
[1744557525055,12.28677,1580.6,1580.1,6.4981217]
[1744557525056,5.96,1580.6,1580.1,6.4981217]
[1744557525256,6.3277,1580.4,1580.1,0.1694617]
[1744557525589,6.32806,1580.3,1580.1,0.1694617]
[1744557525793,0.7874,1580.5,1580.2,6.32793]
[1744557526091,5.96,1580.6,1580.5,6.32711]
[1744557526392,0.7874,1581.1,1580.7,0.8168]
[1744557526691,0.7874,1581.3,1581.0,6.32498]
[1744557526857,6.32379,1581.4,1581.1,0.1694617]
[1744557527063,7.6094,1581.6,1581.2,6.32413]
[1744557527256,7.6094,1581.6,1581.1,0.9862617]
[1744557527257,13.07103,1581.8,1581.3,6.48217086]
[1744557527473,6.32233,1581.7,1581.3,6.48217086]
[1744557527995,13.07103,1581.8,1581.3,6.48214086]
[1744557528202,9.43106778,1582.2,1581.5,7.14025]
[1744557528203,7.11024,1582.0,1581.5,7.14025]
[1744557528406,7.6111,1582.2,1581.5,13.96227]
[1744557528559,6.32134,1582.0,1581.5,20.28511]
[1744557528760,13.93145,1582.2,1581.7,6.32227]
[1744557529014,9.32077,1582.1,1581.7,6.32208]
[1744557529164,9.32077,1582.1,1581.6,6.32247]
[1744557529356,12.64178,1582.1,1581.8,0.15847086]
[1744557529558,12.64178,1582.1,1581.6,12.6449]
[1744557529780,12.64178,1582.1,1581.9,0.15847086]
[1744557529970,6.32077,1582.1,1581.7,6.3223]
[1744557530167,0.7891,1582.2,1582.0,0.15847086]
[1744557530394,6.31995,1582.3,1581.8,6.32162]
[1744557530556,7.15861,1582.4,1582.1,0.15847086]
[1744557530907,6.36951,1582.4,1582.2,0.15847086]
[1744557531070,6.31991,1582.3,1582.2,0.15847086]
[1744557531275,6.32075,1582.1,1581.7,0.8174]
[1744557531491,6.32075,1582.1,1581.8,0.15847086]
[1744557532294,12.64175,1582.1,1581.8,0.15847086]
[1744557532807,6.32115,1582.0,1581.8,0.15847086]
[1744557533401,10.14582,1582.4,1582.0,6.32104]
[1744557533796,10.14582,1582.4,1582.1,0.12178181]
[1744557534216,10.14582,1582.4,1582.1,7.23608181]
[1744557534217,0.05,1582.4,1582.1,7.23608181]
[1744557534368,0.05,1582.4,1582.1,13.55661181]
[1744557534569,0.05,1582.4,1582.1,7.23591181]
[1744557535323,0.05,1582.4,1582.3,6.31991]
[1744557535807,0.05,1582.4,1582.3,6.43911084]
[1744557536174,0.05,1582.4,1582.3,0.11920084]
[1744557536404,0.05,1582.4,1582.3,6.43911084]
[1744557537207,0.05,1582.4,1582.3,0.11920084]
[1744557538067,0.05,1582.4,1582.1,7.11426]
[1744557538302,6.32007,1582.3,1582.1,0.7936]
[1744557538867,6.36956,1582.4,1582.1,0.7936]
[1744557539105,6.36956,1582.4,1582.1,7.11408]
[1744557539106,0.05,1582.4,1582.1,7.11408]
[1744557539486,6.36954,1582.4,1582.1,7.11408]
[1744557539995,6.36954,1582.4,1582.1,0.7936]
[1744557540298,6.32031,1582.2,1581.9,6.815]
[1744557540467,6.32084,1582.1,1581.9,0.8158]
[1744557541011,6.31995,1582.3,1581.9,0.8158]
[1744557541307,6.32046,1582.2,1581.9,0.8158]
[1744557541897,6.31995,1582.3,1581.9,7.13702]
[1744557542099,6.32059,1582.2,1581.9,0.8158]
[1744557542516,6.32059,1582.2,1581.9,7.13725]
[1744557542924,6.01,1582.4,1581.9,7.2004616]
[1744557542925,12.3296,1582.4,1581.9,7.2004616]
[1744557543109,18.64934,1582.4,1582.0,6.32087]
[1744557543289,18.64934,1582.4,1581.9,7.13727]
[1744557543290,6.31998,1582.3,1581.9,7.13727]
[1744557543476,6.32047,1582.2,1581.9,0.8158]
[1744557543678,18.64936,1582.4,1582.0,6.32094]
[1744557544183,18.64936,1582.4,1581.9,7.13708]
[1744557544184,6.32077,1582.1,1581.9,0.8158]
[1744557544387,6.01,1582.4,1581.9,0.8158]
[1744557544609,6.32086,1582.1,1581.9,0.8158]
[1744557544814,6.32111,1582.0,1581.9,0.8158]
[1744557544972,12.64249,1582.0,1581.7,7.612]
[1744557545172,6.32104,1582.1,1581.5,0.797]
[1744557545411,6.32104,1582.1,1581.3,0.797]
[1744557545412,6.32351,1581.4,1581.3,0.797]
[1744557545619,0.7526,1581.8,1581.0,1.27496301]
[1744557545620,6.32431,1581.2,1581.0,1.27496301]
[1744557545818,6.32471,1581.1,1581.0,0.47796301]
[1744557545972,6.32391,1581.3,1580.8,6.814]
[1744557546171,6.32529,1581.0,1580.8,6.814]
[1744557546415,6.32408,1581.3,1580.8,6.814]
[1744557546616,6.3251,1581.1,1580.8,6.814]
[1744557546773,6.32467,1581.2,1580.8,6.814]
[1744557547119,6.32488,1581.1,1580.8,6.814]
[1744557547309,12.64986,1581.1,1580.8,6.814]
[1744557547711,6.32511,1581.0,1580.8,6.814]
[1744557547911,6.32551,1580.9,1580.8,6.814]
[1744557548215,6.32488,1581.1,1580.7,7.12305]
[1744557548383,6.32433,1581.2,1580.8,6.45076181]
[1744557548711,6.32486,1581.1,1580.8,0.12503181]
[1744557548890,6.32527,1581.0,1580.8,0.12503181]
[1744557549278,12.65069,1581.0,1580.8,0.12503181]
[1744557549713,6.32473,1581.1,1580.8,0.12503181]
[1744557549983,6.32436,1581.2,1580.8,6.45074181]
[1744557550195,5.96,1581.3,1580.8,1.48243499]
[1744557550413,6.32455,1581.2,1580.8,0.12503181]
[1744557550617,6.32494,1581.1,1580.8,0.12503181]
[1744557551124,6.32494,1581.1,1580.8,6.45092181]
[1744557552007,6.32494,1581.1,1580.8,0.12503181]
[1744557552180,5.96,1581.3,1581.0,6.32495]
[1744557552382,6.32325,1581.5,1581.1,6.32449]
[1744557552626,6.32275,1581.6,1581.2,0.7886]
[1744557552830,6.32191,1581.8,1581.2,7.11289]
[1744557553118,6.32342,1581.5,1581.3,0.14181269]
[1744557553304,6.32351,1581.4,1581.3,0.14181269]
[1744557553508,6.3234,1581.5,1581.3,0.14181269]
[1744557554108,6.32275,1581.6,1581.3,0.14181269]
[1744557554334,6.32233,1581.7,1581.3,6.46554269]
[1744557554486,12.64489,1581.7,1581.3,6.46554269]
[1744557554836,6.32233,1581.7,1581.3,6.46554269]
[1744557554994,6.32231,1581.7,1581.3,0.92943921]
[1744557555179,6.32231,1581.7,1581.3,6.46535269]
[1744557555684,6.32193,1581.8,1581.3,6.46535269]
[1744557555685,6.32193,1581.8,1581.4,6.32335]
[1744557555888,6.32244,1581.7,1581.5,0.13561346]
[1744557556115,6.32244,1581.7,1581.3,6.3239]
[1744557556316,6.32207,1581.8,1581.6,0.13561346]
[1744557556600,12.64486,1581.7,1581.3,6.32388]
[1744557556797,6.32231,1581.7,1581.3,6.32388]
[1744557557123,6.32231,1581.7,1581.2,0.7886]
[1744557557283,6.32231,1581.7,1581.3,6.32372]
[1744557557486,12.64485,1581.7,1581.3,7.034952]
[1744557558021,6.32231,1581.7,1581.3,7.034952]
[1744557558325,6.32231,1581.7,1581.3,13.358632]
[1744557558821,6.32231,1581.7,1581.3,7.034912]
[1744557559021,6.32231,1581.7,1581.3,13.358682]
[1744557559235,12.64485,1581.7,1581.4,1.3358682]
[1744557559526,6.32231,1581.7,1581.4,1.3358682]
[1744557560018,6.32343,1581.5,1581.2,0.7886]
[1744557560221,6.32288,1581.6,1581.3,6.32384]
[1744557560419,6.32288,1581.6,1581.3,6.45299603]
[1744557560622,6.32231,1581.7,1581.3,12.64757]
[1744557560927,3.0,1581.8,1581.4,0.12915603]
[1744557561100,6.32246,1581.7,1581.4,0.88035603]
[1744557561295,9.32192,1581.8,1581.4,7.20369603]
[1744557561490,9.32192,1581.8,1581.5,6.32298]
[1744557561734,3.0,1581.8,1581.6,0.12993069]
[1744557562029,6.32231,1581.7,1581.6,0.12993069]
[1744557562331,6.32231,1581.7,1581.4,0.7512]
[1744557562491,6.32231,1581.7,1581.6,0.12993069]
[1744557562699,6.32318,1581.5,1581.2,0.8245]
[1744557562898,6.32318,1581.5,1581.3,0.12993069]
[1744557563332,12.64655,1581.5,1581.3,0.12993069]
[1744557563497,6.32318,1581.5,1581.3,0.12993069]
[1744557566853,7.15384,1581.7,1581.3,0.12993069]
[1744557567012,6.32283,1581.6,1581.3,0.12993069]
[1744557567411,6.3232,1581.5,1581.3,0.12993069]
[1744557567613,6.32351,1581.4,1581.3,0.12993069]
[1744557567922,6.32351,1581.4,1581.0,20.21221]
[1744557568125,6.32351,1581.4,1581.3,0.12183361]
[1744557568126,12.64727,1581.4,1581.3,0.12183361]
[1744557568335,6.32351,1581.4,1581.0,20.21221]
[1744557568520,6.32351,1581.4,1581.3,0.12144643]
[1744557568841,6.32351,1581.4,1581.1,6.3247]
[1744557569050,6.32351,1581.4,1581.3,0.12260803]
[1744557569215,6.32351,1581.4,1581.1,6.3247]
[1744557569418,6.32351,1581.4,1581.3,0.12260803]
[1744557569621,5.96,1581.6,1581.3,0.12260803]
[1744557569622,5.96,1581.6,1581.3,6.32356]
[1744557569814,5.96,1581.6,1581.4,6.3235]
[1744557570139,8.96,1581.6,1581.5,0.12312434]
[1744557570542,12.28271,1581.6,1581.5,0.12312434]
[1744557570749,12.28271,1581.6,1581.3,6.32387]
[1744557570935,12.28271,1581.6,1581.5,0.12312434]
[1744557571138,12.28271,1581.6,1581.0,13.88736]
[1744557571139,6.32378,1581.4,1581.0,13.88736]
[1744557571331,12.64763,1581.4,1581.0,13.88736]
[1744557571647,6.32395,1581.3,1581.0,7.08736]
[1744557571942,6.32395,1581.3,1581.0,0.7624]
[1744557572153,6.32434,1581.2,1580.9,6.32549]
[1744557573150,7.12025,1581.3,1580.9,12.65082]
[1744557573749,13.44447,1581.3,1580.9,6.32533]
[1744557573952,6.32451,1581.2,1580.8,20.93883118]
[1744557574253,6.32451,1581.2,1580.9,6.53958732]
[1744557574410,12.64903,1581.2,1580.9,0.21408732]
[1744557574612,6.32451,1581.2,1580.9,0.21408732]
[1744557574913,13.4444,1581.3,1580.9,6.53953732]
[1744557575255,7.12026,1581.3,1580.9,12.65078]
[1744557575455,6.32356,1581.4,1580.8,8.28723118]
[1744557575630,6.32409,1581.3,1580.9,6.32534]
[1744557575952,6.32409,1581.3,1580.9,12.6507]
[1744557576450,6.32409,1581.3,1581.0,0.21431966]
[1744557577548,6.32409,1581.3,1580.9,12.6507]
[1744557578347,6.32409,1581.3,1580.9,6.32534]
[1744557578552,6.32417,1581.3,1580.9,6.32547]
[1744557578859,6.32448,1581.2,1580.9,6.32547]
[1744557581058,6.32448,1581.2,1580.9,12.65078]
[1744557581439,6.32356,1581.4,1581.0,6.3249]
[1744557581642,6.32356,1581.4,1580.8,8.28723118]
[1744557581643,3.0,1581.4,1581.1,6.32445]
[1744557581848,9.32355,1581.4,1581.0,12.6499]
[1744557582154,9.32355,1581.4,1581.0,6.32494]
[1744557582455,6.32391,1581.3,1581.0,6.32494]
[1744557582757,6.32391,1581.3,1580.9,6.32535]
[1744557583060,15.64734,1581.4,1581.0,6.32498]
[1744557583220,6.32393,1581.3,1580.9,14.11205812]
[1744557583421,6.325,1581.1,1580.8,8.28723118]
[1744557583637,6.325,1581.1,1580.8,14.61294118]
[1744557583833,6.32574,1580.9,1580.6,0.7732]
[1744557584045,6.32574,1580.9,1580.6,7.0999]
[1744557584936,6.32519,1581.0,1580.6,13.42647]
[1744557585651,6.32491,1581.1,1580.7,6.32593]
[1744557586646,6.32491,1581.1,1580.8,0.11837598]
[1744557586862,9.32437,1581.2,1580.8,12.76985598]
[1744557587167,3.0,1581.2,1581.0,6.32509]
[1744557587334,3.0,1581.2,1580.9,6.32549]
[1744557587539,3.0,1581.2,1581.1,0.12573107]
[1744557587740,3.0,1581.2,1580.9,6.32549]
[1744557587940,3.0,1581.2,1581.1,0.12573107]
[1744557588148,3.0,1581.2,1580.9,6.32549]
[1744557588371,3.0,1581.2,1581.1,0.12573107]
[1744557588672,3.0,1581.2,1580.9,6.32549]
[1744557589160,0.7722,1581.3,1581.0,0.94054032]
[1744557589370,6.32317,1581.5,1581.1,6.3245]
[1744557589664,6.32317,1581.5,1581.1,12.649]
[1744557589866,6.32317,1581.5,1581.2,0.12340784]
[1744557590231,13.05988,1581.6,1581.2,6.32413]
[1744557590560,5.96,1581.6,1581.3,13.58728784]
[1744557590768,5.96,1581.6,1581.4,6.32335]
[1744557591169,7.09908,1581.8,1581.4,12.6467]
[1744557591372,6.32198,1581.8,1581.5,6.44644784]
[1744557591668,6.32198,1581.8,1581.5,6.32304]
[1744557592365,6.32151,1581.9,1581.5,12.64608]
[1744557592573,19.37956,1582.0,1581.6,6.32253]
[1744557592880,6.32158,1581.9,1581.6,6.32253]
[1744557593045,6.32158,1581.9,1581.6,7.12133]
[1744557593241,13.05822,1582.0,1581.8,6.3219]
[1744557593242,5.96,1582.0,1581.8,6.3219]
[1744557593448,0.7884,1582.2,1581.8,6.3219]
[1744557593877,3.7884,1582.2,1581.8,6.3219]
[1744557594071,6.32094,1582.1,1581.7,7.034393]
[1744557594275,12.64197,1582.1,1581.7,7.034393]
[1744557594574,12.64197,1582.1,1581.8,0.7034393]
[1744557594941,6.32094,1582.1,1581.8,0.7034393]
[1744557595867,13.42933,1582.2,1581.8,7.0252793]
[1744557596368,6.32073,1582.1,1581.8,7.0252793]
[1744557597177,6.32119,1582.0,1581.7,0.712133]
[1744557597470,6.32119,1582.0,1581.6,7.12137]
[1744557597673,6.32119,1582.0,1581.7,6.3222]
[1744557597877,6.32119,1582.0,1581.6,7.12137]
[1744557598888,12.64253,1582.0,1581.6,7.12137]
[1744557599179,6.32119,1582.0,1581.6,7.1213]
[1744557599393,6.32119,1582.0,1581.7,7.0343]
[1744557600775,3.7884,1582.2,1581.7,0.71213]
[1744557600975,12.64294,1582.0,1581.6,7.12147]
[1744557601288,6.32161,1581.9,1581.6,0.7988]
[1744557601499,6.32081,1582.1,1581.6,0.7988]
[1744557601789,6.32165,1581.9,1581.6,0.7988]
[1744557602461,6.32076,1582.1,1581.7,6.32208]
[1744557602661,6.32076,1582.1,1581.8,6.32189]
[1744557603087,12.64169,1582.1,1581.7,7.034168]
[1744557603281,6.32076,1582.1,1581.8,6.32182]
[1744557604993,3.0,1582.2,1581.7,0.712088]
[1744557605158,3.0,1582.2,1581.9,6.32144]
[1744557605764,3.0,1582.2,1582.0,6.32098]
[1744557605999,12.28004,1582.3,1582.0,6.32098]